fUSD/lending_fUSD_20260224
["ID","MTS","AMOUNT","RATE_DAILY","PERIOD"]
[406507768,1771893041311,-1268.30104481,0.00017808,2]
[406507769,1771893041322,-1268.30104481,0.00017808,2]
[406507770,1771893041333,-1268.30104481,0.00017808,2]
[406507771,1771893041343,-1268.30104481,0.00017808,2]
[406507772,1771893041353,-1268.30104481,0.00017808,2]
[406507773,1771893041363,-1268.30104481,0.00017808,2]
[406507774,1771893041373,-1307.93545247,0.00017808,2]
[406507775,1771893041383,-1307.93545247,0.00017808,2]
[406507776,1771893041396,-1307.93545247,0.00017808,2]
[406507777,1771893041407,-1307.93545247,0.00017808,2]
[406507778,1771893041416,-1307.93545247,0.00017808,2]
[406507779,1771893041426,-1307.93545247,0.00017808,2]
[406507780,1771893041436,-1307.93545247,0.00017808,2]
[406507781,1771893041446,-1307.93545247,0.00017808,2]
[406507782,1771893041455,-1399.6027235,0.00017808,2]
[406507783,1771893041465,-1399.6027235,0.00017808,2]
[406507784,1771893041475,-1399.6027235,0.00017808,2]
[406507785,1771893041484,-1399.6027235,0.00017808,2]
[406507786,1771893041494,-800.0,0.00017808,2]
[406507787,1771893041503,-1004.93385763,0.0001786,2]
[406507788,1771893041513,-6620.80649535,0.000179,2]
[406507789,1771893041523,-30208.4453287,0.00017907,2]
[406507790,1771893041533,-10935.58,0.00017945,2]
[406507791,1771893041543,-500.0,0.00017973,2]
[406507792,1771893041552,-500.0,0.00017973,2]
[406507793,1771893041562,-500.0,0.00017973,2]
[406507794,1771893041571,-500.0,0.00017973,2]
[406507795,1771893041581,-500.0,0.00017973,2]
[406507796,1771893041592,-572.00269459,0.00017973,2]
[406507797,1771893041601,-500.0,0.00017973,2]
[406507798,1771893041611,-500.0,0.00017973,2]
[406507799,1771893041620,-500.0,0.00017973,2]
[406507800,1771893041630,-500.0,0.00017973,2]
[406507801,1771893041640,-500.0,0.00017973,2]
[406507802,1771893041650,-500.0,0.00017973,2]
[406507803,1771893041661,-500.54183681,0.00017973,2]
[406507804,1771893041672,-500.0,0.00017973,2]
[406507805,1771893041683,-500.0,0.00017973,2]
[406507806,1771893041694,-500.0,0.00017973,2]
[406507807,1771893041706,-500.0,0.00017973,2]
[406507808,1771893041716,-500.0,0.00017973,2]
[406507809,1771893041727,-500.0,0.00017973,2]
[406507810,1771893041737,-165.3317424,0.00017973,2]
[406507811,1771893041747,-166.94045127,0.00017973,2]
[406507812,1771893041757,-239.8459294,0.00017973,2]
[406507813,1771893041767,-500.0,0.00017973,2]
[406507814,1771893041777,-500.0,0.00017973,2]
[406507815,1771893041787,-500.0,0.00017973,2]
[406507816,1771893041797,-500.0,0.00017973,2]
[406507817,1771893041807,-500.0,0.00017973,2]
[406507818,1771893041817,-500.0,0.00017973,2]
[406507819,1771893041826,-500.0,0.00017973,2]
[406507820,1771893041836,-384.29639944,0.00017973,2]
[406507821,1771893041845,-500.0,0.00017973,2]
[406507822,1771893042071,-500.0,0.00017973,2]
[406507823,1771893042115,-19623.96968133,0.00017987,2]
[406507824,1771893042125,-359.97146027,0.00017987,2]
[406507825,1771893042135,-3516575.04914187,0.00018,2]
[406507826,1771893042149,-3898.6796,0.00018,2]
[406507827,1771893042160,-1058.577,0.00018,2]
[406507833,1771893046081,-168.1517621,0.00017987,2]
[406507834,1771893046093,-804.85747286,0.00018,2]
[406507835,1771893046105,-7843.67436655,0.00018,2]
[406507836,1771893046366,-931.44138412,0.00018,2]
[406507837,1771893046380,-8148.81890758,0.00018,2]
[406507838,1771893046394,-2318.58522198,0.00018,2]
[406507839,1771893046405,-321.95199935,0.00018,2]
[406507842,1771893156135,451.14,0.00012107,2]
[406507843,1771893156344,451.14,0.0001238,2]
[406507845,1771893585264,2506.37,0.00011431,2]
[406508256,1771893787718,165.29,0.00011283,2]
[406508268,1771894232320,-240.503778,0.00012447,2]
[406508269,1771894232330,-253.0,0.0001251,2]
[406508270,1771894232340,-166.66,0.0001251,2]
[406508271,1771894232349,-225.97,0.000126,2]
[406508272,1771894232358,-451.14,0.00012653,2]
[406508273,1771894232368,-772.37253698,0.00012735,2]
[406508274,1771894232388,-427.62746302,0.00012735,2]
[406508275,1771894232398,-526.31445013,0.00012736,2]
[406508276,1771894232483,-572.84682148,0.00012736,2]
[406508353,1771894238503,-73271.28872839,0.00012736,2]
[406508354,1771894238512,-166.66,0.00012773,2]
[406508355,1771894238522,-451.14,0.00012926,2]
[406508357,1771894238532,-500.0,0.00013,2]
[406508358,1771894238542,-166.66,0.00013037,2]
[406508360,1771894238552,-150.0,0.00013041,2]
[406508361,1771894238561,-500.0,0.00013056,2]
[406508362,1771894238572,-1600.0,0.00013088,2]
[406508363,1771894238582,-451.14,0.00013199,2]
[406508364,1771894238592,-166.66,0.000133,2]
[406508365,1771894238601,-451.14,0.00013472,2]
[406508366,1771894238611,-166.66,0.00013564,2]
[406508367,1771894238620,-960.16877061,0.00013566,2]
[406508368,1771894238629,-447.06297488,0.00013661,2]
[406508369,1771894238638,-904.64909466,0.00013661,2]
[406508370,1771894238647,-451.14,0.00013746,2]
[406508371,1771894238656,-181.85750958,0.0001375,2]
[406508372,1771894238666,-229.46186805,0.00013759,2]
[406508373,1771894238675,-500.0,0.00013759,2]
[406508374,1771894238684,-500.0,0.00013759,2]
[406508375,1771894238694,-500.0,0.00013759,2]
[406508376,1771894238712,-444.32349321,0.00013759,2]
[406508377,1771894238723,-3500000.0,0.0001376,2]
[406508378,1771894238733,-2500.0,0.00013761,2]
[406508379,1771894238743,-2500.0,0.00013761,2]
[406508380,1771894238753,-2500.0,0.00013761,2]
[406508381,1771894238763,-2500.0,0.00013761,2]
[406508382,1771894238773,-2500.0,0.00013761,2]
[406508383,1771894238782,-195.0,0.00013761,2]
[406508384,1771894238792,-195.0,0.00013761,2]
[406508385,1771894238801,-195.0,0.00013761,2]
[406508386,1771894238810,-195.0,0.00013761,2]
[406508387,1771894238820,-195.0,0.00013761,2]
[406508388,1771894238829,-166.66,0.00013827,2]
[406508389,1771894238839,-150.0,0.00013859,2]
[406508390,1771894238848,-150.99,0.0001386,2]
[406508391,1771894238858,-9999.99,0.0001386,2]
[406508392,1771894238867,-9999.99,0.0001386,2]
[406508393,1771894238877,-999.99,0.0001386,2]
[406508394,1771894238887,-150.99,0.0001386,2]
[406508395,1771894238896,-887.0,0.0001392,2]
[406508396,1771894238905,-908.0,0.00013948,2]
[406508397,1771894238914,-457.0,0.00013962,2]
[406508398,1771894238923,-255.0,0.0001399,2]
[406508399,1771894238933,-282.0,0.00014008,2]
[406508400,1771894238943,-1680.0,0.00014009,2]
[406508401,1771894238952,-451.14,0.00014019,2]
[406508402,1771894238962,-834.0,0.00014036,2]
[406508403,1771894238971,-222.0,0.00014151,2]
[406508404,1771894238981,-500.0,0.00014179,2]
[406508406,1771894238991,-186.0,0.00014179,2]
[406508408,1771894239000,-384.0,0.00014208,2]
[406508410,1771894239010,-420.0,0.00014236,2]
[406508411,1771894239020,-310.0,0.00014243,2]
[406508412,1771894239030,-359.04527717,0.00014257,2]
[406508413,1771894239039,-18240.60521318,0.00014257,2]
[406508414,1771894239049,-644.0,0.00014272,2]
[406508415,1771894239059,-451.14,0.00014292,2]
[406508416,1771894239070,-3240.0,0.00014293,2]
[406508417,1771894239079,-703.0,0.000143,2]
[406508418,1771894239089,-337.0,0.00014329,2]
[406508420,1771894239098,-348.0,0.00014329,2]
[406508422,1771894239107,-1436.0,0.00014329,2]
[406508423,1771894239116,-500.0,0.0001435,2]
[406508424,1771894239126,-500.0,0.0001435,2]
[406508425,1771894239135,-1319.0,0.00014357,2]
[406508426,1771894239145,-255.49,0.00014357,2]
[406508427,1771894239155,-151.0,0.00014441,2]
[406508428,1771894239164,-151.0,0.00014441,2]
[406508429,1771894239174,-151.0,0.00014441,2]
[406508430,1771894239184,-151.0,0.00014441,2]
[406508431,1771894239193,-151.0,0.00014441,2]
[406508432,1771894239202,-151.0,0.00014441,2]
[406508433,1771894239212,-151.0,0.00014441,2]
[406508434,1771894239222,-151.0,0.00014441,2]
[406508435,1771894239231,-151.0,0.00014441,2]
[406508436,1771894239240,-151.0,0.00014441,2]
[406508437,1771894239250,-151.0,0.00014441,2]
[406508438,1771894239259,-151.0,0.00014441,2]
[406508439,1771894239269,-151.0,0.00014441,2]
[406508440,1771894239278,-151.0,0.00014441,2]
[406508441,1771894239287,-151.0,0.00014441,2]
[406508442,1771894239296,-151.0,0.00014441,2]
[406508443,1771894239306,-151.0,0.00014441,2]
[406508444,1771894239315,-151.0,0.00014441,2]
[406508445,1771894239324,-151.0,0.00014441,2]
[406508446,1771894239334,-151.0,0.00014441,2]
[406508447,1771894239343,-10000.0,0.00014451,2]
[406508448,1771894239352,-1000.0,0.00014451,2]
[406508449,1771894239361,-417.20013387,0.000145,2]
[406508450,1771894239371,-482.61545865,0.00014504,2]
[406508451,1771894239381,-482.61545862,0.00014504,2]
[406508452,1771894239393,-451.14,0.00014565,2]
[406508453,1771894239403,-151.0,0.00014634,2]
[406508454,1771894239412,-151.0,0.00014634,2]
[406508455,1771894239422,-151.0,0.00014634,2]
[406508456,1771894239433,-151.0,0.00014634,2]
[406508457,1771894239443,-151.0,0.00014634,2]
[406508458,1771894239452,-18240.60521316,0.00014662,2]
[406508459,1771894239462,-1600.0,0.00014724,2]
[406508460,1771894239472,-451.14,0.00014838,2]
[406508461,1771894239481,-482.61545865,0.00014867,2]
[406508462,1771894239491,-482.61545862,0.00014867,2]
[406508463,1771894239500,-914.56105735,0.00014909,2]
[406508464,1771894239510,-255.0,0.00014982,2]
[406508465,1771894239519,-250.0,0.00015,2]
[406508466,1771894239528,-18240.60521316,0.00015067,2]
[406508467,1771894239537,-900.0,0.00015068,2]
[406508468,1771894239546,-514.0,0.00015101,2]
[406508470,1771894239555,-513.0,0.00015101,2]
[406508472,1771894239564,-451.14,0.00015111,2]
[406508474,1771894239573,-482.61545865,0.00015229,2]
[406508475,1771894239585,-482.61545862,0.00015229,2]
[406508476,1771894239594,-451.14,0.00015384,2]
[406508477,1771894239604,-2351.0,0.0001541,2]
[406508478,1771894239613,-150.0,0.00015467,2]
[406508479,1771894239624,-18240.60521316,0.00015471,2]
[406508480,1771894239639,-2170.82,0.00015471,2]
[406508481,1771894239649,-482.61545862,0.00015592,2]
[406508482,1771894239660,-451.14,0.00015657,2]
[406508483,1771894239671,-18320.676,0.00015689,2]
[406508484,1771894239680,-18348.0944,0.00015694,2]
[406508485,1771894239691,-2500.0,0.00015694,2]
[406508486,1771894239700,-500.0,0.00015793,2]
[406508487,1771894239710,-500.0,0.00015793,2]
[406508488,1771894239721,-500.0,0.00015793,2]
[406508489,1771894239731,-500.0,0.00015793,2]
[406508490,1771894239742,-500.0,0.00015793,2]
[406508491,1771894239754,-500.0,0.00015793,2]
[406508492,1771894239765,-500.0,0.00015793,2]
[406508493,1771894239774,-500.0,0.00015793,2]
[406508494,1771894239785,-500.0,0.00015793,2]
[406508495,1771894239795,-500.0,0.00015793,2]
[406508496,1771894239805,-500.0,0.00015793,2]
[406508497,1771894239814,-500.0,0.00015793,2]
[406508498,1771894239824,-500.0,0.00015793,2]
[406508499,1771894239835,-500.0,0.00015793,2]
[406508500,1771894239844,-500.0,0.00015793,2]
[406508501,1771894239854,-18240.60521316,0.00015876,2]
[406508502,1771894239863,-451.14,0.0001593,2]
[406508503,1771894239873,-482.61545862,0.00015954,2]
[406508504,1771894239882,-359.04527717,0.00016079,2]
[406508505,1771894239892,-9999.99,0.00016116,2]
[406508506,1771894239901,-433.0,0.00016201,2]
[406508507,1771894239911,-451.14,0.00016203,2]
[406508508,1771894239923,-18240.60521316,0.00016281,2]
[406508509,1771894239933,-1600.0,0.0001636,2]
[406508510,1771894239943,-900.0,0.00016438,2]
[406508511,1771894239953,-451.14,0.00016477,2]
[406508512,1771894239962,-250.0,0.0001653,2]
[406508513,1771894239971,-204.0,0.0001662,2]
[406508514,1771894239982,-204.0,0.00016663,2]
[406508515,1771894239992,-173.82651237,0.00016665,2]
[406508516,1771894240001,-18240.60521316,0.00016686,2]
[406508517,1771894240011,-167.18,0.00016712,2]
[406508518,1771894240020,-451.14,0.0001675,2]
[406508519,1771894240030,-204.0,0.00016834,2]
[406508520,1771894240040,-204.0,0.00016865,2]
[406508521,1771894240050,-204.0,0.00016872,2]
[406508522,1771894240060,-204.0,0.00016873,2]
[406508523,1771894240070,-204.0,0.00016901,2]
[406508524,1771894240080,-15625.38,0.00016922,2]
[406508525,1771894240090,-9999.99,0.00016922,2]
[406508526,1771894240099,-165.29,0.00016925,2]
[406508527,1771894240109,-3292.0,0.00016951,2]
[406508528,1771894240120,-300.0,0.00017,2]
[406508529,1771894240130,-451.14,0.00017023,2]
[406508530,1771894240139,-168.0,0.00017023,2]
[406508531,1771894240148,-18240.60521316,0.0001709,2]
[406508532,1771894240158,-204.0,0.00017197,2]
[406508533,1771894240167,-451.14,0.00017296,2]
[406508534,1771894240177,-20000.0,0.00017345,2]
[406508535,1771894240186,-204.0,0.00017426,2]
[406508536,1771894240195,-204.0,0.00017473,2]
[406508537,1771894240204,-18240.60521316,0.00017495,2]
[406508538,1771894240214,-204.0,0.00017502,2]
[406508539,1771894240223,-736.0,0.00017504,2]
[406508540,1771894240233,-204.0,0.00017529,2]
[406508541,1771894240242,-168.0,0.00017594,2]
[406508542,1771894240252,-204.0,0.00017619,2]
[406508543,1771894240261,-204.0,0.00017659,2]
[406508544,1771894240271,-514.0,0.00017697,4]
[406508545,1771894240280,-204.0,0.00017699,2]
[406508546,1771894240289,-204.0,0.000177,2]
[406508547,1771894240299,-248.67385222,0.00017716,2]
[406508548,1771894240311,-204.0,0.00017763,2]
[406508549,1771894240323,-971.77838537,0.00017808,2]
[406508550,1771894240333,-971.77838537,0.00017808,2]
[406508551,1771894240342,-971.77838537,0.00017808,2]
[406508552,1771894240352,-971.77838537,0.00017808,2]
[406508553,1771894240361,-971.77838537,0.00017808,2]
[406508554,1771894240370,-971.77838537,0.00017808,2]
[406508555,1771894240379,-971.77838537,0.00017808,2]
[406508556,1771894240388,-971.77838537,0.00017808,2]
[406508557,1771894240402,-971.77838537,0.00017808,2]
[406508558,1771894240410,-971.77838537,0.00017808,2]
[406508559,1771894240419,-971.77838537,0.00017808,2]
[406508560,1771894240429,-971.77838537,0.00017808,2]
[406508561,1771894240440,-971.77838537,0.00017808,2]
[406508562,1771894240449,-971.77838537,0.00017808,2]
[406508563,1771894240458,-971.77838537,0.00017808,2]
[406508564,1771894240468,-971.77838537,0.00017808,2]
[406508565,1771894240477,-971.77838537,0.00017808,2]
[406508566,1771894240486,-971.77838537,0.00017808,2]
[406508567,1771894240495,-800.0,0.00017808,2]
[406508568,1771894240504,-204.0,0.00017825,2]
[406508569,1771894240513,-500.0,0.00017852,2]
[406508570,1771894240522,-168.0,0.00017876,2]
[406508571,1771894240530,-351.98367056,0.000179,2]
[406508572,1771894240539,-32870.6204,0.000179,2]
[406508573,1771894240550,-162.0,0.000179,2]
[406508574,1771894240565,-359.04527717,0.000179,2]
[406508575,1771894240576,-150.0,0.000179,2]
[406508576,1771894240585,-18240.60521316,0.000179,2]
[406508577,1771894240596,-487.0,0.000179,2]
[406508578,1771894240607,-487.0,0.000179,2]
[406508579,1771894240620,-487.0,0.000179,2]
[406508580,1771894240631,-487.0,0.000179,2]
[406508581,1771894240641,-529.61,0.000179,2]
[406508582,1771894240652,-204.0,0.00017901,2]
[406508583,1771894240664,-150.54907301,0.00017923,5]
[406508584,1771894240675,-168.0,0.0001794,2]
[406508585,1771894240684,-204.0,0.0001795,2]
[406508586,1771894240695,-500.0,0.00017973,2]
[406508587,1771894240706,-572.00269459,0.00017973,2]
[406508588,1771894240718,-165.3317424,0.00017973,2]
[406508589,1771894240729,-500.0,0.00017973,2]
[406508590,1771894240739,-166.94045127,0.00017973,2]
[406508591,1771894240749,-500.0,0.00017973,2]
[406508592,1771894240758,-500.0,0.00017973,2]
[406508593,1771894240767,-500.0,0.00017973,2]
[406508594,1771894240776,-500.0,0.00017973,2]
[406508595,1771894240786,-500.0,0.00017973,2]
[406508596,1771894240795,-500.08540525,0.00017973,2]
[406508597,1771894240804,-500.0,0.00017973,2]
[406508598,1771894240813,-500.0,0.00017973,2]
[406508599,1771894240823,-500.0,0.00017973,2]
[406508600,1771894240832,-500.0,0.00017973,2]
[406508601,1771894240841,-500.0,0.00017973,2]
[406508602,1771894240851,-500.0,0.00017973,2]
[406508603,1771894240860,-500.54183681,0.00017973,2]
[406508604,1771894240869,-500.0,0.00017973,2]
[406508605,1771894240878,-500.0,0.00017973,2]
[406508606,1771894240887,-500.0,0.00017973,2]
[406508607,1771894240897,-500.0,0.00017973,2]
[406508608,1771894240906,-500.0,0.00017973,2]
[406508609,1771894240916,-239.8459294,0.00017973,2]
[406508610,1771894240926,-500.0,0.00017973,2]
[406508611,1771894240935,-500.0,0.00017973,2]
[406508612,1771894240945,-500.0,0.00017973,2]
[406508613,1771894240954,-500.0,0.00017973,2]
[406508614,1771894240963,-500.0,0.00017973,2]
[406508615,1771894240973,-384.29639944,0.00017973,2]
[406508616,1771894240983,-500.0,0.00017973,2]
[406508617,1771894240992,-500.0,0.00017973,2]
[406508618,1771894241002,-204.0,0.00017977,2]
[406508619,1771894241012,-1600.0,0.00017996,2]
[406508620,1771894241021,-23731.6650699,0.00017999,2]
[406508621,1771894241031,-500.0,0.00017999,2]
[406508622,1771894241040,-500.0,0.00017999,2]
[406508623,1771894241049,-500.0,0.00017999,2]
[406508624,1771894241059,-500.0,0.00017999,2]
[406508625,1771894241069,-500.0,0.00017999,2]
[406508626,1771894241078,-265.82,0.00017999,2]
[406508627,1771894241087,-705933.53724846,0.00018,2]
[406508628,1771894241369,-2768.47356276,0.00018,2]
[406508629,1771894241380,-1617.9145956,0.00018,2]
[406508630,1771894241393,-27131.28553281,0.00018,2]
[406508631,1771894241408,-304.0,0.00018,2]
[406508632,1771894241419,-1405.08006027,0.00018,2]
[406508633,1771894241431,-922.18333418,0.00018,2]
[406508634,1771894241443,-425.63,0.00018,2]
[406508635,1771894241454,-500.0,0.00018,2]
[406508636,1771894241470,-1587.711,0.00018,2]
[406508637,1771894241481,-3184.0340222,0.00018,2]
[406508638,1771894241492,-669337.15486841,0.00018,2]
[406508639,1771894241501,-3129908.37905573,0.00018,2]
[406508640,1771894241511,-524.0,0.00018,2]
[406508641,1771894241519,-158.769236,0.00018,2]
[406508642,1771894241528,-158.769236,0.00018,2]
[406508643,1771894241538,-158.769236,0.00018,2]
[406508644,1771894241547,-158.769236,0.00018,2]
[406508645,1771894241556,-151.0,0.00018,2]
[406508646,1771894241565,-151.0,0.00018,2]
[406508647,1771894241574,-151.0,0.00018,2]
[406508648,1771894241583,-151.0,0.00018,2]
[406508649,1771894241592,-151.0,0.00018,2]
[406508650,1771894241602,-296.0,0.00018,2]
[406508651,1771894241611,-1950.8214987,0.00018087,2]
[406508652,1771894241620,-200.0,0.00018128,2]
[406508653,1771894241630,-482.61545862,0.0001813,2]
[406508654,1771894241639,-205.63,0.00018346,2]
[406508655,1771894241648,-482.61545862,0.00018493,2]
[406508656,1771894241658,-546.83756971,0.00018521,2]
[406508657,1771894241667,-1005.65218414,0.00018521,2]
[406508658,1771894241676,-504.1163522,0.00018521,2]
[406508659,1771894241686,-184.74613995,0.00018521,2]
[406508660,1771894241695,-503.5027165,0.00018521,2]
[406508661,1771894241705,-500.0,0.00018521,2]
[406508662,1771894241714,-1000.0,0.00018521,2]
[406508663,1771894241724,-503.79287711,0.00018521,2]
[406508664,1771894241733,-204.25245901,0.00018521,2]
[406508665,1771894241742,-1143.72920629,0.00018521,2]
[406508666,1771894241752,-1007.9623124,0.00018521,2]
[406508667,1771894241763,-501.52699276,0.00018521,2]
[406508668,1771894241773,-6740.415244,0.00018589,2]
[406508670,1771894241783,-4609.0,0.00018646,2]
[406508671,1771894241792,-435.2871134,0.00018809,2]
[406508672,1771894241802,-482.61545862,0.00018855,2]
[406508673,1771894241811,-800.0,0.00018904,2]
[406508674,1771894241820,-862.0,0.00018931,2]
[406508675,1771894241829,-350.0,0.00019,2]
[406508676,1771894241839,-207.69725749,0.00019,2]
[406508677,1771894241850,-205.63,0.0001911,2]
[406508678,1771894241860,-370.64791783,0.00019178,2]
[406508679,1771894241870,-482.61545862,0.00019218,2]
[406508680,1771894241879,-2419.98624501,0.00019421,2]
[406508681,1771894241889,-1000.0,0.00019429,2]
[406508682,1771894241899,-482.61545862,0.0001958,2]
[406508683,1771894241908,-403.33104084,0.00019595,2]
[406508684,1771894241918,-1600.0,0.00019632,2]
[406508685,1771894241927,-403.33104084,0.00019789,2]
[406508686,1771894241937,-205.63,0.00019875,2]
[406508687,1771894241946,-255.49,0.00019925,2]
[406508688,1771894241955,-482.61545862,0.00019943,2]
[406508689,1771894241964,-403.33104084,0.00019983,2]
[406508690,1771894241974,-1538.23597158,0.0002,2]
[406508691,1771894241983,-177.07673491,0.0002,2]
[406508692,1771894241991,-1298.63021323,0.0002,2]
[406508693,1771894242004,-1048.32623553,0.0002,2]
[406508694,1771894242013,-2321.29862396,0.0002,2]
[406508695,1771894242022,-154.9920342,0.0002,2]
[406508696,1771894242031,-152.0,0.0002,2]
[406508697,1771894242041,-1000.0,0.0002,4]
[406508698,1771894242050,-150.41230104,0.0002,20]
[406508699,1771894242060,-514.0,0.00020293,6]
[406508700,1771894242069,-482.61545862,0.00020306,2]
[406508701,1771894242078,-2293.0,0.00020511,2]
[406508702,1771894242087,-205.63,0.00020639,2]
[406508703,1771894242097,-482.61545862,0.00020668,2]
[406508705,1771894242106,-253.97910825,0.00020988,2]
[406508706,1771894242115,-400.0,0.00021,2]
[406508707,1771894242124,-482.61545862,0.00021031,2]
[406508708,1771894242133,-164.16786887,0.0002105,2]
[406508709,1771894242143,-500.0,0.0002105,2]
[406508710,1771894242152,-162.09782857,0.0002105,2]
[406508711,1771894242162,-500.0,0.0002105,2]
[406508712,1771894242171,-594.93556122,0.0002105,2]
[406508713,1771894242181,-500.0,0.0002105,2]
[406508714,1771894242190,-500.0,0.0002105,2]
[406508715,1771894242199,-500.0,0.0002105,2]
[406508716,1771894242208,-500.0,0.0002105,2]
[406508717,1771894242218,-500.0,0.0002105,2]
[406508718,1771894242228,-500.0,0.0002105,2]
[406508719,1771894242239,-241.21989957,0.0002105,2]
[406508720,1771894242248,-1000.0,0.00021195,2]
[406508721,1771894242258,-14114.0,0.000213,2]
[406508722,1771894242267,-482.61545862,0.00021393,2]
[406508723,1771894242276,-5295.2502276,0.00021583,2]
[406508724,1771894242285,-1000.0,0.00021598,2]
[406508725,1771894242295,-1098.38505595,0.00021598,2]
[406508726,1771894242304,-500.0,0.00021598,2]
[406508727,1771894242313,-1000.0,0.00021598,2]
[406508728,1771894242323,-1000.0,0.00021598,2]
[406508729,1771894242332,-1000.0,0.00021598,2]
[406508730,1771894242342,-1000.0,0.00021598,2]
[406508731,1771894242351,-187.45409726,0.00021598,2]
[406508732,1771894242360,-482.61545862,0.00021756,2]
[406508734,1771894242369,-5000.0,0.00021918,2]
[406508735,1771894242378,-24000.23,0.00022,2]
[406508736,1771894242389,-5530.0,0.000221,3]
[406508737,1771894242402,-482.61545862,0.00022119,2]
[406508738,1771894242412,-1500.0,0.00022146,2]
[406508739,1771894242421,-887.35182664,0.00022146,2]
[406508740,1771894242430,-1500.0,0.00022146,2]
[406508741,1771894242441,-1500.0,0.00022146,2]
[406508742,1771894242450,-1550.59,0.00022279,2]
[406508743,1771894242459,-1181.5300313,0.00022382,2]
[406508744,1771894242470,-351.98367053,0.00022507,2]
[406508745,1771894242479,-780.99530583,0.00022694,2]
[406508746,1771894242488,-514.0,0.00022889,8]
[406508747,1771894242498,-5530.0,0.000229,5]
[406508748,1771894242507,-150.0,0.00022999,2]
[406508749,1771894242516,-160.0,0.00023,2]
[406508750,1771894242526,-450.0,0.00023,2]
[406508752,1771894242536,-2506.37,0.00023212,2]
[406508753,1771894242546,-200.0,0.0002336,2]
[406508754,1771894242555,-255.49,0.00023647,2]
[406508755,1771894242566,-1000.0,0.00024658,2]
[406508756,1771894242577,-245.92,0.00024658,2]
[406508757,1771894242587,-168.44,0.00024658,30]
[406508758,1771894242596,-150.0,0.00024658,2]
[406508759,1771894242605,-24000.23,0.000247,2]
[406508760,1771894242616,-152.37105579,0.00025,2]
[406508761,1771894242626,-500.0,0.00025,2]
[406508762,1771894242636,-514.0,0.00025485,11]
[406508763,1771894242645,-150.0,0.000255,14]
[406508764,1771894242656,-346.68,0.00025517,2]
[406508765,1771894242666,-500.0,0.00025583,2]
[406508766,1771894242676,-150.0,0.0002589,2]
[406508767,1771894242686,-4725.0,0.00026072,2]
[406508768,1771894242695,-470.5998931,0.00026374,2]
[406508769,1771894242706,-500.0,0.00026374,2]
[406508770,1771894242715,-205.5,0.000268,14]
[406508771,1771894242725,-173.82651237,0.00027,3]
[406508772,1771894242734,-351.98367053,0.00027113,2]
[406508773,1771894242743,-150.0,0.00027185,2]
[406508774,1771894242753,-427.35,0.00027236,2]
[406508775,1771894242762,-150.0,0.00027369,2]
[406508776,1771894242775,-606.81540851,0.00027397,120]
[406508777,1771894242784,-1000.0,0.00027397,20]
[406508778,1771894242793,-245.92,0.00027397,2]
[406508779,1771894242803,-300.0,0.00027397,2]
[406508780,1771894242813,-500.0,0.00027629,2]
[406508781,1771894242822,-427.35,0.0002769,2]
[406508782,1771894242831,-514.0,0.00028081,13]
[406508783,1771894242840,-427.35,0.00028143,2]
[406508784,1771894242851,-24000.23,0.000282,2]
[406508785,1771894242860,-150.0,0.00028544,2]
[406508786,1771894242869,-427.35031953,0.00028597,2]